{"text_format":"3","workbook":"xlsx","n_sheets":2,"sheets":["ДАННИ ЗА РАСТЕЖА","ДИАГРАМА НА РАСТЕЖА"],"not_rendered":{"charts":1,"defined_names":3},"read":"whole","date_system":"1900"}

{"sheet":"ДАННИ ЗА РАСТЕЖА","index":0,"n_rows":23,"n_cols":8,"rows_kept":23,"merged":[[0,1,0,7],[1,2,1,7]]}
[null,"Растеж на бебето "]
[null,"Име на бебето:","Име"]
[null,"Възраст","Килограми","Грамове","Тегло (кг)","Тегло\nПерсентил","Дължина (см)","Дължина\nПерсентил"]
[null,"При раждане",7,null,{"$f":"IF(COUNT(Данни[[#This Row],[Килограми]:[Грамове]])>0,Данни[[#This Row],[Килограми]]+(Данни[[#This Row],[Грамове]]/16),NA())","v":7},40,19.5,70]
[null,"4 дни",6,8,{"$f":"IF(COUNT(Данни[[#This Row],[Килограми]:[Грамове]])>0,Данни[[#This Row],[Килограми]]+(Данни[[#This Row],[Грамове]]/16),NA())","v":6.5},41,19.5,70]
[null,"7 дни",6,4.8,{"$f":"IF(COUNT(Данни[[#This Row],[Килограми]:[Грамове]])>0,Данни[[#This Row],[Килограми]]+(Данни[[#This Row],[Грамове]]/16),NA())","v":6.3},42,20,71]
[null,"11 дни",6,9.6,{"$f":"IF(COUNT(Данни[[#This Row],[Килограми]:[Грамове]])>0,Данни[[#This Row],[Килограми]]+(Данни[[#This Row],[Грамове]]/16),NA())","v":6.6},43,20,71]
[null,"14 дни",7,null,{"$f":"IF(COUNT(Данни[[#This Row],[Килограми]:[Грамове]])>0,Данни[[#This Row],[Килограми]]+(Данни[[#This Row],[Грамове]]/16),NA())","v":7},44,20,71]
[null,"18 дни",7,12,{"$f":"IF(COUNT(Данни[[#This Row],[Килограми]:[Грамове]])>0,Данни[[#This Row],[Килограми]]+(Данни[[#This Row],[Грамове]]/16),NA())","v":7.75},45,21,72]
[null,"21 дни",8,8,{"$f":"IF(COUNT(Данни[[#This Row],[Килограми]:[Грамове]])>0,Данни[[#This Row],[Килограми]]+(Данни[[#This Row],[Грамове]]/16),NA())","v":8.5},46,21,72]
[null,"25 дни",null,null,{"$f":"IF(COUNT(Данни[[#This Row],[Килограми]:[Грамове]])>0,Данни[[#This Row],[Килограми]]+(Данни[[#This Row],[Грамове]]/16),NA())","v":{"$error":"#N/A"}}]
[null,"28 дни",null,null,{"$f":"IF(COUNT(Данни[[#This Row],[Килограми]:[Грамове]])>0,Данни[[#This Row],[Килограми]]+(Данни[[#This Row],[Грамове]]/16),NA())","v":{"$error":"#N/A"}}]
[null,"5 седмици",null,null,{"$f":"IF(COUNT(Данни[[#This Row],[Килограми]:[Грамове]])>0,Данни[[#This Row],[Килограми]]+(Данни[[#This Row],[Грамове]]/16),NA())","v":{"$error":"#N/A"}}]
[null,"6 седмици",null,null,{"$f":"IF(COUNT(Данни[[#This Row],[Килограми]:[Грамове]])>0,Данни[[#This Row],[Килограми]]+(Данни[[#This Row],[Грамове]]/16),NA())","v":{"$error":"#N/A"}}]
[null,"7 седмици",null,null,{"$f":"IF(COUNT(Данни[[#This Row],[Килограми]:[Грамове]])>0,Данни[[#This Row],[Килограми]]+(Данни[[#This Row],[Грамове]]/16),NA())","v":{"$error":"#N/A"}}]
[null,"2 месеца",null,null,{"$f":"IF(COUNT(Данни[[#This Row],[Килограми]:[Грамове]])>0,Данни[[#This Row],[Килограми]]+(Данни[[#This Row],[Грамове]]/16),NA())","v":{"$error":"#N/A"}}]
[null,"3 месеца",null,null,{"$f":"IF(COUNT(Данни[[#This Row],[Килограми]:[Грамове]])>0,Данни[[#This Row],[Килограми]]+(Данни[[#This Row],[Грамове]]/16),NA())","v":{"$error":"#N/A"}}]
[null,"6 месеца",null,null,{"$f":"IF(COUNT(Данни[[#This Row],[Килограми]:[Грамове]])>0,Данни[[#This Row],[Килограми]]+(Данни[[#This Row],[Грамове]]/16),NA())","v":{"$error":"#N/A"}}]
[null,"9 месеца",null,null,{"$f":"IF(COUNT(Данни[[#This Row],[Килограми]:[Грамове]])>0,Данни[[#This Row],[Килограми]]+(Данни[[#This Row],[Грамове]]/16),NA())","v":{"$error":"#N/A"}}]
[null,"12 месеца",null,null,{"$f":"IF(COUNT(Данни[[#This Row],[Килограми]:[Грамове]])>0,Данни[[#This Row],[Килограми]]+(Данни[[#This Row],[Грамове]]/16),NA())","v":{"$error":"#N/A"}}]
[null,"18 месеца",null,null,{"$f":"IF(COUNT(Данни[[#This Row],[Килограми]:[Грамове]])>0,Данни[[#This Row],[Килограми]]+(Данни[[#This Row],[Грамове]]/16),NA())","v":{"$error":"#N/A"}}]
[null,"24 месеца",null,null,{"$f":"IF(COUNT(Данни[[#This Row],[Килограми]:[Грамове]])>0,Данни[[#This Row],[Килограми]]+(Данни[[#This Row],[Грамове]]/16),NA())","v":{"$error":"#N/A"}}]
[null,"36 месеца",null,null,{"$f":"IF(COUNT(Данни[[#This Row],[Килограми]:[Грамове]])>0,Данни[[#This Row],[Килограми]]+(Данни[[#This Row],[Грамове]]/16),NA())","v":{"$error":"#N/A"}}]

{"sheet":"ДИАГРАМА НА РАСТЕЖА","index":1,"n_rows":1,"n_cols":2,"rows_kept":1,"merged":[[0,1,1,1]]}
[null,"ДИАГРАМА НА РАСТЕЖА НА БЕБЕ"]